[Event "Titled Tuesday Blitz June 27 Early 2023"]
[White "Yeritsyan, Hayk"]
[Black "Liu, Xiangyi"]
[WhiteFideId "13307320"]
[BlackFideId "8605718"]
[WhiteElo "2492"]
[BlackElo "2721"]
[Result "0-1"]
[Round "11"]
[TimeControl "180+2"]
[Date "2023.06.27"]
[WhiteClock "0:00:17"]
[BlackClock "0:00:45"]
[Board "53"]

1. d4 {[%clk 0:03:00]}  b6 {[%clk 0:02:57]} 2. Nf3 {[%clk 0:03:01]}  Bb7 {[%clk 0:02:57]} 3. Bf4 {[%clk 0:03:01]}  f5 {[%clk 0:02:57]} 4. e3 {[%clk 0:03:01]}  Nf6 {[%clk 0:02:56]} 5. h3 {[%clk 0:03:02]}  e6 {[%clk 0:02:56]} 6. c3 {[%clk 0:03:02]}  d6 {[%clk 0:02:56]} 7. Be2 {[%clk 0:03:02]}  Nbd7 {[%clk 0:02:57]} 8. O-O {[%clk 0:03:03]}  Qe7 {[%clk 0:02:58]} 9. Bh2 {[%clk 0:03:02]}  g5 {[%clk 0:02:54]} 10. Nxg5 {[%clk 0:02:46]}  Rg8 {[%clk 0:02:53]} 11. Bf3 {[%clk 0:02:33]}  c6 {[%clk 0:02:41]} 12. Bh5+ {[%clk 0:02:27]}  Kd8 {[%clk 0:02:41]} 13. Nf7+ {[%clk 0:02:25]}  Kc7 {[%clk 0:02:39]} 14. Bxd6+ {[%clk 0:02:22]}  Qxd6 {[%clk 0:02:39]} 15. Nxd6 {[%clk 0:02:23]}  Bxd6 {[%clk 0:02:40]} 16. Bf3 {[%clk 0:02:20]}  e5 {[%clk 0:02:40]} 17. Nd2 {[%clk 0:02:15]}  e4 {[%clk 0:02:37]} 18. Be2 {[%clk 0:02:15]}  Rg6 {[%clk 0:02:37]} 19. f4 {[%clk 0:02:13]}  Nd5 {[%clk 0:02:19]} 20. Nc4 {[%clk 0:02:04]}  Be7 {[%clk 0:02:19]} 21. Qd2 {[%clk 0:01:56]}  Rag8 {[%clk 0:02:16]} 22. g4 {[%clk 0:01:33]}  fxg4 {[%clk 0:02:11]} 23. hxg4 {[%clk 0:01:32]}  b5 {[%clk 0:02:02]} 24. Ne5 {[%clk 0:01:31]}  Nxe5 {[%clk 0:02:02]} 25. f5 {[%clk 0:01:29]}  Rxg4+ {[%clk 0:01:58]} 26. Bxg4 {[%clk 0:01:28]}  Rxg4+ {[%clk 0:01:49]} 27. Kh2 {[%clk 0:01:18]}  Nf3+ {[%clk 0:01:29]} 28. Rxf3 {[%clk 0:01:18]}  exf3 {[%clk 0:01:30]} 29. e4 {[%clk 0:01:14]}  Rxe4 {[%clk 0:01:25]} 30. Re1 {[%clk 0:01:10]}  Bd6+ {[%clk 0:01:16]} 31. Kh3 {[%clk 0:01:08]}  Nf4+ {[%clk 0:01:14]} 32. Kg4 {[%clk 0:01:05]}  f2 {[%clk 0:01:11]} 33. Rf1 {[%clk 0:00:48]}  c5 {[%clk 0:00:58]} 34. dxc5 {[%clk 0:00:40]}  Ng6+ {[%clk 0:00:51]} 35. Kg5 {[%clk 0:00:37]}  Bf4+ {[%clk 0:00:49]} 36. Qxf4+ {[%clk 0:00:28]}  Nxf4 {[%clk 0:00:50]} 37. f6 {[%clk 0:00:27]}  Bd5 {[%clk 0:00:46]} 38. Kf5 {[%clk 0:00:25]}  Nd3 {[%clk 0:00:45]} 39. f7 {[%clk 0:00:17]}  Rf4+ {[%clk 0:00:45]} 0-1


[Site "https://www.chess.com"]

[Event "Titled Tuesday Blitz June 27 Early 2023"]
[White "Liyanage, Ranindu Dilshan"]
[Black "Manukian, Artak"]
[WhiteFideId "9915834"]
[BlackFideId "13301373"]
[WhiteElo "2660"]
[BlackElo "2443"]
[Result "0-1"]
[Round "11"]
[TimeControl "180+2"]
[Date "2023.06.27"]
[WhiteClock "0:00:05"]
[BlackClock "0:00:03"]
[Board "57"]

1. c4 {[%clk 0:03:00]}  g6 {[%clk 0:02:59]} 2. Nc3 {[%clk 0:03:00]}  Bg7 {[%clk 0:03:00]} 3. d4 {[%clk 0:03:00]}  d6 {[%clk 0:02:59]} 4. e4 {[%clk 0:03:01]}  Nf6 {[%clk 0:02:58]} 5. Be2 {[%clk 0:02:59]}  O-O {[%clk 0:02:58]} 6. Be3 {[%clk 0:03:00]}  e5 {[%clk 0:02:57]} 7. d5 {[%clk 0:02:59]}  a5 {[%clk 0:02:54]} 8. h4 {[%clk 0:02:58]}  h5 {[%clk 0:02:38]} 9. Qc2 {[%clk 0:02:45]}  Na6 {[%clk 0:02:32]} 10. f3 {[%clk 0:02:40]}  c6 {[%clk 0:02:18]} 11. Nh3 {[%clk 0:02:38]}  cxd5 {[%clk 0:02:12]} 12. cxd5 {[%clk 0:02:38]}  Nh7 {[%clk 0:02:01]} 13. Ng5 {[%clk 0:02:34]}  Nxg5 {[%clk 0:01:57]} 14. hxg5 {[%clk 0:02:31]}  Bd7 {[%clk 0:01:47]} 15. g4 {[%clk 0:02:21]}  hxg4 {[%clk 0:01:41]} 16. fxg4 {[%clk 0:02:22]}  b5 {[%clk 0:01:16]} 17. Bf3 {[%clk 0:02:15]}  b4 {[%clk 0:01:10]} 18. Qh2 {[%clk 0:02:15]}  Re8 {[%clk 0:01:03]} 19. Ne2 {[%clk 0:02:15]}  Nc5 {[%clk 0:00:56]} 20. Ng3 {[%clk 0:02:11]}  Nd3+ {[%clk 0:00:46]} 21. Kd2 {[%clk 0:02:09]}  Nxb2 {[%clk 0:00:46]} 22. Qh7+ {[%clk 0:02:04]}  Kf8 {[%clk 0:00:45]} 23. Nf5 {[%clk 0:02:05]}  gxf5 {[%clk 0:00:41]} 24. gxf5 {[%clk 0:02:05]}  Nc4+ {[%clk 0:00:41]} 25. Ke2 {[%clk 0:02:05]}  Nxe3 {[%clk 0:00:41]} 26. Rag1 {[%clk 0:01:57]}  Bb5+ {[%clk 0:00:35]} 27. Kf2 {[%clk 0:01:51]}  Qb6 {[%clk 0:00:35]} 28. Kg3 {[%clk 0:01:40]}  f6 {[%clk 0:00:11]} 29. gxf6 {[%clk 0:01:29]}  Bxf6 {[%clk 0:00:11]} 30. Rh6 {[%clk 0:01:30]}  Nxf5+ {[%clk 0:00:07]} 31. Kh3 {[%clk 0:00:34]}  Nxh6 {[%clk 0:00:07]} 32. Rg6 {[%clk 0:00:24]}  Nf7 {[%clk 0:00:04]} 33. Rxf6 {[%clk 0:00:20]}  Bf1+ {[%clk 0:00:04]} 34. Kh2 {[%clk 0:00:09]}  Qf2+ {[%clk 0:00:03]} 35. Kh1 {[%clk 0:00:10]}  Bg2+ {[%clk 0:00:02]} 36. Kh2 {[%clk 0:00:05]}  Bxf3+ {[%clk 0:00:02]} 37. Kh3 {[%clk 0:00:06]}  Qg2+ {[%clk 0:00:02]} 38. Kh4 {[%clk 0:00:05]}  Qg4# {[%clk 0:00:03]} 0-1


[Site "https://www.chess.com"]

[Event "Titled Tuesday Blitz June 27 Early 2023"]
[White "arenal72"]
[Black "Pap, Gyula"]
[BlackFideId "725323"]
[WhiteElo "2391"]
[BlackElo "2898"]
[Result "1-0"]
[Round "11"]
[TimeControl "180+2"]
[Date "2023.06.27"]
[WhiteClock "0:00:32"]
[BlackClock "0:01:53"]
[Board "60"]

1. e4 {[%clk 0:03:00]}  b6 {[%clk 0:03:00]} 2. d4 {[%clk 0:02:57]}  Bb7 {[%clk 0:03:01]} 3. Bd3 {[%clk 0:02:54]}  e6 {[%clk 0:03:02]} 4. Qe2 {[%clk 0:02:50]}  g6 {[%clk 0:03:02]} 5. Nf3 {[%clk 0:02:47]}  Bg7 {[%clk 0:03:02]} 6. h4 {[%clk 0:02:46]}  h6 {[%clk 0:03:02]} 7. c3 {[%clk 0:02:43]}  d6 {[%clk 0:03:01]} 8. Bf4 {[%clk 0:02:42]}  Nd7 {[%clk 0:03:02]} 9. Nbd2 {[%clk 0:02:42]}  Ne7 {[%clk 0:03:02]} 10. Nf1 {[%clk 0:02:41]}  a6 {[%clk 0:02:58]} 11. Ne3 {[%clk 0:02:40]}  Kf8 {[%clk 0:02:58]} 12. g4 {[%clk 0:02:36]}  b5 {[%clk 0:02:55]} 13. a4 {[%clk 0:02:20]}  e5 {[%clk 0:02:50]} 14. Bg3 {[%clk 0:02:17]}  c6 {[%clk 0:02:50]} 15. h5 {[%clk 0:02:15]}  Bf6 {[%clk 0:02:43]} 16. hxg6 {[%clk 0:02:10]}  fxg6 {[%clk 0:02:43]} 17. Bh4 {[%clk 0:02:10]}  Kg7 {[%clk 0:02:39]} 18. Bxf6+ {[%clk 0:01:57]}  Nxf6 {[%clk 0:02:40]} 19. dxe5 {[%clk 0:01:55]}  dxe5 {[%clk 0:02:40]} 20. Nxe5 {[%clk 0:01:55]}  Qc7 {[%clk 0:02:40]} 21. f4 {[%clk 0:01:51]}  c5 {[%clk 0:02:40]} 22. Rf1 {[%clk 0:01:24]}  c4 {[%clk 0:02:39]} 23. Bc2 {[%clk 0:01:23]}  Nxe4 {[%clk 0:02:37]} 24. Bxe4 {[%clk 0:01:09]}  Bxe4 {[%clk 0:02:38]} 25. N3xc4 {[%clk 0:01:09]}  Bb7 {[%clk 0:02:27]} 26. Ne3 {[%clk 0:01:07]}  b4 {[%clk 0:02:26]} 27. cxb4 {[%clk 0:01:04]}  Rhf8 {[%clk 0:02:27]} 28. Rd1 {[%clk 0:01:00]}  Rad8 {[%clk 0:02:25]} 29. Qc4 {[%clk 0:00:56]}  Rxd1+ {[%clk 0:02:13]} 30. Kxd1 {[%clk 0:00:56]}  Qb6 {[%clk 0:02:14]} 31. Ke2 {[%clk 0:00:52]}  Bc8 {[%clk 0:02:06]} 32. Rc1 {[%clk 0:00:47]}  Be6 {[%clk 0:02:03]} 33. Qc7 {[%clk 0:00:47]}  Qxb4 {[%clk 0:01:53]} 34. Nd3 {[%clk 0:00:32]} 1-0


[Site "https://www.chess.com"]

[Event "Titled Tuesday Blitz June 27 Early 2023"]
[White "Al-Tarboush, Ward"]
[Black "Herzog2012"]
[WhiteFideId "7601450"]
[WhiteElo "2616"]
[BlackElo "2474"]
[Result "0-1"]
[Round "11"]
[TimeControl "180+2"]
[Date "2023.06.27"]
[WhiteClock "0:00:00"]
[BlackClock "0:00:04"]
[Board "67"]

1. e4 {[%clk 0:02:39]}  c5 {[%clk 0:02:59]} 2. Nf3 {[%clk 0:02:39]}  Nc6 {[%clk 0:02:59]} 3. d4 {[%clk 0:02:39]}  cxd4 {[%clk 0:03:00]} 4. Nxd4 {[%clk 0:02:39]}  Nf6 {[%clk 0:03:00]} 5. Nc3 {[%clk 0:02:38]}  d6 {[%clk 0:03:00]} 6. Bg5 {[%clk 0:02:38]}  e6 {[%clk 0:03:00]} 7. Qd2 {[%clk 0:02:37]}  Be7 {[%clk 0:03:00]} 8. O-O-O {[%clk 0:02:37]}  O-O {[%clk 0:03:00]} 9. Ndb5 {[%clk 0:02:33]}  Qa5 {[%clk 0:02:02]} 10. f4 {[%clk 0:02:15]}  Rd8 {[%clk 0:01:40]} 11. Kb1 {[%clk 0:02:14]}  a6 {[%clk 0:01:34]} 12. Nd4 {[%clk 0:02:12]}  Nxd4 {[%clk 0:01:31]} 13. Qxd4 {[%clk 0:02:13]}  h6 {[%clk 0:01:25]} 14. Bh4 {[%clk 0:02:10]}  b5 {[%clk 0:01:05]} 15. a3 {[%clk 0:02:02]}  Rb8 {[%clk 0:01:01]} 16. Qb4 {[%clk 0:01:53]}  Qxb4 {[%clk 0:00:52]} 17. axb4 {[%clk 0:01:54]}  Bb7 {[%clk 0:00:50]} 18. Bd3 {[%clk 0:01:52]}  Kf8 {[%clk 0:00:49]} 19. Rhg1 {[%clk 0:01:47]}  d5 {[%clk 0:00:42]} 20. e5 {[%clk 0:01:42]}  Nd7 {[%clk 0:00:42]} 21. Bxe7+ {[%clk 0:01:42]}  Kxe7 {[%clk 0:00:43]} 22. g4 {[%clk 0:01:42]}  g5 {[%clk 0:00:35]} 23. Rde1 {[%clk 0:01:38]}  gxf4 {[%clk 0:00:35]} 24. Rgf1 {[%clk 0:01:38]}  Rg8 {[%clk 0:00:31]} 25. Rxf4 {[%clk 0:01:37]}  Rg5 {[%clk 0:00:31]} 26. Ne2 {[%clk 0:01:35]}  Rxe5 {[%clk 0:00:30]} 27. Ref1 {[%clk 0:01:35]}  Rf8 {[%clk 0:00:28]} 28. Nd4 {[%clk 0:01:33]}  Re3 {[%clk 0:00:23]} 29. h4 {[%clk 0:01:27]}  Ne5 {[%clk 0:00:23]} 30. Bf5 {[%clk 0:01:23]}  Nc6 {[%clk 0:00:19]} 31. Nxc6+ {[%clk 0:01:17]}  Bxc6 {[%clk 0:00:20]} 32. Bg6 {[%clk 0:01:17]}  Be8 {[%clk 0:00:17]} 33. h5 {[%clk 0:01:04]}  Re5 {[%clk 0:00:14]} 34. Bd3 {[%clk 0:01:02]}  Rg5 {[%clk 0:00:10]} 35. Rf6 {[%clk 0:01:02]}  Rh8 {[%clk 0:00:09]} 36. R6f4 {[%clk 0:00:57]}  Rf8 {[%clk 0:00:07]} 37. b3 {[%clk 0:00:55]}  f6 {[%clk 0:00:06]} 38. Re1 {[%clk 0:00:51]}  e5 {[%clk 0:00:06]} 39. Bf5 {[%clk 0:00:49]}  Kd6 {[%clk 0:00:05]} 40. Rf3 {[%clk 0:00:49]}  Bd7 {[%clk 0:00:05]} 41. Bxd7 {[%clk 0:00:41]}  Kxd7 {[%clk 0:00:06]} 42. Rd3 {[%clk 0:00:40]}  Ke6 {[%clk 0:00:05]} 43. Red1 {[%clk 0:00:41]}  d4 {[%clk 0:00:04]} 44. c3 {[%clk 0:00:41]}  Rxg4 {[%clk 0:00:04]} 45. cxd4 {[%clk 0:00:40]}  Rxd4 {[%clk 0:00:04]} 46. Rxd4 {[%clk 0:00:38]}  exd4 {[%clk 0:00:05]} 47. Rxd4 {[%clk 0:00:38]}  f5 {[%clk 0:00:05]} 48. Kc2 {[%clk 0:00:34]}  f4 {[%clk 0:00:05]} 49. Kd2 {[%clk 0:00:29]}  Kf5 {[%clk 0:00:04]} 50. Rd6 {[%clk 0:00:28]}  Rf6 {[%clk 0:00:04]} 51. Rd5+ {[%clk 0:00:29]}  Kg4 {[%clk 0:00:04]} 52. Ke2 {[%clk 0:00:29]}  Re6+ {[%clk 0:00:03]} 53. Kf2 {[%clk 0:00:29]}  Rc6 {[%clk 0:00:04]} 54. Rc5 {[%clk 0:00:22]}  Rd6 {[%clk 0:00:03]} 55. Re5 {[%clk 0:00:16]}  Rd2+ {[%clk 0:00:03]} 56. Kf1 {[%clk 0:00:16]}  Rb2 {[%clk 0:00:03]} 57. Re6 {[%clk 0:00:15]}  Kxh5 {[%clk 0:00:03]} 58. Rxa6 {[%clk 0:00:07]}  Rxb3 {[%clk 0:00:04]} 59. Rf6 {[%clk 0:00:07]}  Rxb4 {[%clk 0:00:04]} 60. Kf2 {[%clk 0:00:05]}  Kg5 {[%clk 0:00:04]} 61. Rf8 {[%clk 0:00:06]}  h5 {[%clk 0:00:05]} 62. Rg8+ {[%clk 0:00:06]}  Kf5 {[%clk 0:00:05]} 63. Rf8+ {[%clk 0:00:06]}  Ke4 {[%clk 0:00:06]} 64. Re8+ {[%clk 0:00:06]}  Kd4 {[%clk 0:00:06]} 65. Rh8 {[%clk 0:00:06]}  Kc3 {[%clk 0:00:05]} 66. Rxh5 {[%clk 0:00:05]}  Kb3 {[%clk 0:00:06]} 67. Rc5 {[%clk 0:00:04]}  Ka4 {[%clk 0:00:06]} 68. Rc8 {[%clk 0:00:04]}  Rc4 {[%clk 0:00:06]} 69. Ra8+ {[%clk 0:00:04]}  Kb3 {[%clk 0:00:06]} 70. Kf3 {[%clk 0:00:04]}  b4 {[%clk 0:00:07]} 71. Ra7 {[%clk 0:00:04]}  Kb2 {[%clk 0:00:06]} 72. Ke2 {[%clk 0:00:03]}  b3 {[%clk 0:00:06]} 73. Kd3 {[%clk 0:00:04]}  Rc8 {[%clk 0:00:06]} 74. Rd7 {[%clk 0:00:03]}  Kb1 {[%clk 0:00:06]} 75. Rd6 {[%clk 0:00:02]}  b2 {[%clk 0:00:06]} 76. Rh6 {[%clk 0:00:02]}  Ka2 {[%clk 0:00:04]} 77. Ra6+ {[%clk 0:00:02]}  Kb1 {[%clk 0:00:04]} 78. Rh6 {[%clk 0:00:03]}  Ra8 {[%clk 0:00:05]} 79. Rh4 {[%clk 0:00:02]}  Ka2 {[%clk 0:00:05]} 80. Rh2 {[%clk 0:00:03]}  Ka1 {[%clk 0:00:04]} 81. Kc4 {[%clk 0:00:00]}  b1=Q {[%clk 0:00:04]} 0-1


[Site "https://www.chess.com"]

[Event "Titled Tuesday Blitz June 27 Early 2023"]
[White "Herman, Daniel"]
[Black "Ljukin, Sergei"]
[WhiteFideId "30935008"]
[BlackFideId "14102200"]
[WhiteElo "2436"]
[BlackElo "2557"]
[Result "1-0"]
[Round "11"]
[TimeControl "180+2"]
[Date "2023.06.27"]
[WhiteClock "0:00:02"]
[BlackClock "0:00:01"]
[Board "71"]

1. d4 {[%clk 0:03:00]}  d5 {[%clk 0:02:59]} 2. c4 {[%clk 0:03:00]}  c6 {[%clk 0:02:59]} 3. cxd5 {[%clk 0:03:00]}  cxd5 {[%clk 0:02:58]} 4. Bg5 {[%clk 0:03:00]}  f6 {[%clk 0:02:52]} 5. Bd2 {[%clk 0:03:00]}  Nc6 {[%clk 0:02:51]} 6. Nf3 {[%clk 0:02:47]}  Qb6 {[%clk 0:02:47]} 7. Nc3 {[%clk 0:02:45]}  e6 {[%clk 0:02:44]} 8. e4 {[%clk 0:02:33]}  dxe4 {[%clk 0:02:36]} 9. Nxe4 {[%clk 0:02:33]}  Nxd4 {[%clk 0:02:29]} 10. Bc4 {[%clk 0:01:52]}  Nxf3+ {[%clk 0:01:59]} 11. Qxf3 {[%clk 0:01:53]}  Bb4 {[%clk 0:01:58]} 12. Qh5+ {[%clk 0:01:37]}  Kf8 {[%clk 0:01:38]} 13. O-O {[%clk 0:01:23]}  Bxd2 {[%clk 0:01:38]} 14. Nxd2 {[%clk 0:01:24]}  g6 {[%clk 0:01:33]} 15. Qf3 {[%clk 0:01:20]}  Kg7 {[%clk 0:01:29]} 16. Ne4 {[%clk 0:01:13]}  Bd7 {[%clk 0:00:25]} 17. Rfd1 {[%clk 0:01:04]}  Bc6 {[%clk 0:00:25]} 18. Qc3 {[%clk 0:00:33]}  Bxe4 {[%clk 0:00:17]} 19. Rd7+ {[%clk 0:00:33]}  Kf8 {[%clk 0:00:17]} 20. Qa3+ {[%clk 0:00:20]}  Ke8 {[%clk 0:00:15]} 21. Rad1 {[%clk 0:00:19]}  Rc8 {[%clk 0:00:12]} 22. Bb3 {[%clk 0:00:12]}  Qc6 {[%clk 0:00:09]} 23. Ba4 {[%clk 0:00:06]}  b5 {[%clk 0:00:09]} 24. Bb3 {[%clk 0:00:03]}  Bd5 {[%clk 0:00:09]} 25. Rg7 {[%clk 0:00:01]}  Bxb3 {[%clk 0:00:05]} 26. axb3 {[%clk 0:00:02]}  Qc5 {[%clk 0:00:02]} 27. Qa6 {[%clk 0:00:02]}  Ne7 {[%clk 0:00:02]} 28. Qxe6 {[%clk 0:00:02]}  Qc7 {[%clk 0:00:01]} 29. Qf7# {[%clk 0:00:02]} 1-0


[Site "https://www.chess.com"]

[Event "Titled Tuesday Blitz June 27 Early 2023"]
[White "Mrudul Dehankar"]
[Black "Degenbaev, Aziz"]
[WhiteFideId "25096990"]
[BlackFideId "13802640"]
[WhiteElo "2436"]
[BlackElo "2554"]
[Result "1-0"]
[Round "11"]
[TimeControl "180+2"]
[Date "2023.06.27"]
[WhiteClock "0:00:36"]
[BlackClock "0:00:00"]
[Board "72"]

1. e4 {[%clk 0:02:51]}  c5 {[%clk 0:02:59]} 2. Nf3 {[%clk 0:02:51]}  d6 {[%clk 0:03:00]} 3. d4 {[%clk 0:02:51]}  cxd4 {[%clk 0:03:01]} 4. Nxd4 {[%clk 0:02:52]}  Nf6 {[%clk 0:03:02]} 5. Nc3 {[%clk 0:02:52]}  Nc6 {[%clk 0:03:02]} 6. Bg5 {[%clk 0:02:51]}  Bd7 {[%clk 0:03:03]} 7. Qd2 {[%clk 0:02:52]}  Rc8 {[%clk 0:03:03]} 8. O-O-O {[%clk 0:02:52]}  Nxd4 {[%clk 0:03:03]} 9. Qxd4 {[%clk 0:02:51]}  Qa5 {[%clk 0:03:03]} 10. f4 {[%clk 0:02:48]}  Qc5 {[%clk 0:03:03]} 11. Qd2 {[%clk 0:02:40]}  b5 {[%clk 0:02:31]} 12. Bd3 {[%clk 0:02:34]}  b4 {[%clk 0:02:11]} 13. Ne2 {[%clk 0:02:24]}  Ng4 {[%clk 0:01:54]} 14. Bh4 {[%clk 0:02:17]}  g5 {[%clk 0:01:47]} 15. h3 {[%clk 0:02:08]}  gxh4 {[%clk 0:01:32]} 16. hxg4 {[%clk 0:02:08]}  Bg7 {[%clk 0:01:28]} 17. Rxh4 {[%clk 0:02:05]}  Qf2 {[%clk 0:01:13]} 18. Rdh1 {[%clk 0:02:01]}  h6 {[%clk 0:00:55]} 19. g5 {[%clk 0:01:54]}  a5 {[%clk 0:00:46]} 20. g4 {[%clk 0:01:43]}  Qg2 {[%clk 0:00:22]} 21. gxh6 {[%clk 0:01:41]}  Bf8 {[%clk 0:00:04]} 22. g5 {[%clk 0:01:39]}  a4 {[%clk 0:00:04]} 23. R4h2 {[%clk 0:01:36]}  Qf3 {[%clk 0:00:03]} 24. Nd4 {[%clk 0:01:35]}  Qg4 {[%clk 0:00:03]} 25. Rg2 {[%clk 0:01:10]}  b3 {[%clk 0:00:03]} 26. Kb1 {[%clk 0:01:01]}  bxa2+ {[%clk 0:00:03]} 27. Ka1 {[%clk 0:00:59]}  Qxg5 {[%clk 0:00:02]} 28. fxg5 {[%clk 0:00:56]}  e5 {[%clk 0:00:03]} 29. Nf5 {[%clk 0:00:55]}  d5 {[%clk 0:00:03]} 30. exd5 {[%clk 0:00:53]}  a3 {[%clk 0:00:04]} 31. b3 {[%clk 0:00:52]}  Bc5 {[%clk 0:00:04]} 32. Re1 {[%clk 0:00:49]}  Kd8 {[%clk 0:00:03]} 33. g6 {[%clk 0:00:47]}  fxg6 {[%clk 0:00:02]} 34. d6 {[%clk 0:00:41]}  gxf5 {[%clk 0:00:00]} 35. Qg5+ {[%clk 0:00:36]} 1-0


[Site "https://www.chess.com"]

[Event "Titled Tuesday Blitz June 27 Early 2023"]
[White "Blokhin, Sofia"]
[Black "Yaksin, Oleg"]
[WhiteFideId "4508190"]
[BlackFideId "24105880"]
[WhiteElo "2336"]
[BlackElo "2543"]
[Result "0-1"]
[Round "11"]
[TimeControl "180+2"]
[Date "2023.06.27"]
[WhiteClock "0:00:00"]
[BlackClock "0:00:49"]
[Board "75"]

1. d4 {[%clk 0:03:00]}  Nf6 {[%clk 0:02:57]} 2. c4 {[%clk 0:03:00]}  e6 {[%clk 0:02:58]} 3. Nc3 {[%clk 0:02:59]}  Bb4 {[%clk 0:02:57]} 4. f3 {[%clk 0:02:59]}  O-O {[%clk 0:02:56]} 5. e4 {[%clk 0:02:56]}  c5 {[%clk 0:02:56]} 6. a3 {[%clk 0:02:53]}  Bxc3+ {[%clk 0:02:56]} 7. bxc3 {[%clk 0:02:53]}  Nc6 {[%clk 0:02:56]} 8. Be3 {[%clk 0:02:52]}  d5 {[%clk 0:02:33]} 9. e5 {[%clk 0:02:48]}  Nd7 {[%clk 0:02:32]} 10. cxd5 {[%clk 0:02:47]}  exd5 {[%clk 0:02:33]} 11. Bd3 {[%clk 0:02:43]}  Qa5 {[%clk 0:02:21]} 12. Qd2 {[%clk 0:02:34]}  Nb6 {[%clk 0:02:14]} 13. Ne2 {[%clk 0:02:29]}  Nc4 {[%clk 0:02:12]} 14. Bxc4 {[%clk 0:02:27]}  dxc4 {[%clk 0:02:13]} 15. O-O {[%clk 0:02:10]}  Bf5 {[%clk 0:02:04]} 16. Qb2 {[%clk 0:02:00]}  Bd3 {[%clk 0:01:59]} 17. Rfe1 {[%clk 0:01:54]}  cxd4 {[%clk 0:01:53]} 18. cxd4 {[%clk 0:01:50]}  Bxe2 {[%clk 0:01:49]} 19. Rxe2 {[%clk 0:01:32]}  Qd5 {[%clk 0:01:31]} 20. Qxb7 {[%clk 0:01:13]}  Rab8 {[%clk 0:01:31]} 21. Qa6 {[%clk 0:00:55]}  Rb3 {[%clk 0:01:26]} 22. Rd1 {[%clk 0:00:47]}  Nxe5 {[%clk 0:01:21]} 23. Qxa7 {[%clk 0:00:35]}  Nd3 {[%clk 0:01:20]} 24. h3 {[%clk 0:00:26]}  h6 {[%clk 0:01:11]} 25. a4 {[%clk 0:00:24]}  Re8 {[%clk 0:01:09]} 26. Rdd2 {[%clk 0:00:15]}  Nc1 {[%clk 0:01:07]} 27. Re1 {[%clk 0:00:06]}  Nd3 {[%clk 0:00:55]} 28. Ree2 {[%clk 0:00:06]}  Nb4 {[%clk 0:00:53]} 29. Kh2 {[%clk 0:00:05]}  c3 {[%clk 0:00:53]} 30. Rd1 {[%clk 0:00:04]}  c2 {[%clk 0:00:54]} 31. Rc1 {[%clk 0:00:00]}  Qd6+ {[%clk 0:00:49]} 0-1


[Site "https://www.chess.com"]

[Event "Titled Tuesday Blitz June 27 Early 2023"]
[White "Gontcharov, Vladislav"]
[Black "Zheenbekov, Nurgazy"]
[WhiteFideId "4123492"]
[BlackFideId "13800485"]
[WhiteElo "2555"]
[BlackElo "2453"]
[Result "1-0"]
[Round "11"]
[TimeControl "180+2"]
[Date "2023.06.27"]
[WhiteClock "0:00:16"]
[BlackClock "0:00:00"]
[Board "80"]

1. d4 {[%clk 0:03:00]}  Nf6 {[%clk 0:02:59]} 2. c4 {[%clk 0:03:01]}  e6 {[%clk 0:02:59]} 3. Nc3 {[%clk 0:03:01]}  Bb4 {[%clk 0:02:57]} 4. e3 {[%clk 0:03:01]}  O-O {[%clk 0:02:56]} 5. Bd3 {[%clk 0:03:00]}  d5 {[%clk 0:02:55]} 6. Nf3 {[%clk 0:02:59]}  c5 {[%clk 0:02:54]} 7. O-O {[%clk 0:02:58]}  Nc6 {[%clk 0:02:54]} 8. a3 {[%clk 0:02:52]}  Bxc3 {[%clk 0:02:53]} 9. bxc3 {[%clk 0:02:53]}  b6 {[%clk 0:02:48]} 10. cxd5 {[%clk 0:02:49]}  exd5 {[%clk 0:02:47]} 11. dxc5 {[%clk 0:02:42]}  bxc5 {[%clk 0:02:46]} 12. c4 {[%clk 0:02:42]}  Rb8 {[%clk 0:02:29]} 13. Qc2 {[%clk 0:02:29]}  Ba6 {[%clk 0:02:05]} 14. cxd5 {[%clk 0:02:18]}  Bxd3 {[%clk 0:02:01]} 15. Qxd3 {[%clk 0:02:18]}  Qxd5 {[%clk 0:02:01]} 16. Qxd5 {[%clk 0:02:17]}  Nxd5 {[%clk 0:02:00]} 17. Bd2 {[%clk 0:02:17]}  Nb6 {[%clk 0:01:04]} 18. Rfc1 {[%clk 0:02:11]}  Na4 {[%clk 0:01:03]} 19. Rc4 {[%clk 0:02:04]}  Nb6 {[%clk 0:00:53]} 20. Rxc5 {[%clk 0:02:04]}  Nd8 {[%clk 0:00:47]} 21. Rc7 {[%clk 0:01:50]}  a6 {[%clk 0:00:45]} 22. Ra7 {[%clk 0:01:38]}  Ra8 {[%clk 0:00:31]} 23. Rxa8 {[%clk 0:01:34]}  Nxa8 {[%clk 0:00:31]} 24. Rc1 {[%clk 0:01:32]}  Ne6 {[%clk 0:00:30]} 25. Rc6 {[%clk 0:01:20]}  Nac7 {[%clk 0:00:25]} 26. g4 {[%clk 0:01:15]}  h6 {[%clk 0:00:24]} 27. Ba5 {[%clk 0:01:12]}  Nb5 {[%clk 0:00:24]} 28. Rxa6 {[%clk 0:01:07]}  Rc8 {[%clk 0:00:19]} 29. Bb4 {[%clk 0:01:05]}  Rc4 {[%clk 0:00:17]} 30. h3 {[%clk 0:01:04]}  Rc2 {[%clk 0:00:11]} 31. Ne5 {[%clk 0:00:59]}  Ng5 {[%clk 0:00:10]} 32. Kg2 {[%clk 0:00:34]}  Ne4 {[%clk 0:00:11]} 33. Nd3 {[%clk 0:00:34]}  Ra2 {[%clk 0:00:10]} 34. Kf3 {[%clk 0:00:30]}  Nd2+ {[%clk 0:00:10]} 35. Kf4 {[%clk 0:00:29]}  Nf1 {[%clk 0:00:07]} 36. Ra8+ {[%clk 0:00:21]}  Kh7 {[%clk 0:00:07]} 37. Ra5 {[%clk 0:00:21]}  Nc7 {[%clk 0:00:05]} 38. Ke5 {[%clk 0:00:22]}  Nd2 {[%clk 0:00:05]} 39. Ra7 {[%clk 0:00:20]}  Ne6 {[%clk 0:00:05]} 40. f4 {[%clk 0:00:19]}  Nc4+ {[%clk 0:00:05]} 41. Ke4 {[%clk 0:00:19]}  Re2 {[%clk 0:00:04]} 42. f5 {[%clk 0:00:15]}  Rxe3+ {[%clk 0:00:04]} 43. Kd5 {[%clk 0:00:16]}  Ng5 {[%clk 0:00:03]} 44. Kxc4 {[%clk 0:00:16]}  Re4+ {[%clk 0:00:03]} 45. Kc3 {[%clk 0:00:16]}  Re3 {[%clk 0:00:03]} 46. a4 {[%clk 0:00:16]}  Ne4+ {[%clk 0:00:03]} 47. Kd4 {[%clk 0:00:16]}  Re1 {[%clk 0:00:00]} 48. Nxe1 {[%clk 0:00:16]} 1-0


[Site "https://www.chess.com"]